{"text_format":"1","workbook":"xlsx","n_sheets":4,"sheets":["List2","List1","Posamezno","Ekipno"],"not_rendered":{"charts":0,"images":3,"macros":1,"external_links":0,"defined_names":5,"comments":0,"pivot_tables":0},"unopened":[],"bounds":{"document_bytes":16777216,"sheet_cells":100000,"rows_first":2000,"rows_last":500,"rows_between":2000,"halvings":0,"cell_chars":16384,"cell_head_chars":4096},"cells_cut":0,"cells_raw":0,"read":"whole","date_system":"1900"}

{"sheet":"List2","index":0,"n_rows":22,"n_cols":2,"rows_kept":22,"cut":false,"hidden":false,"merged":[[17,1,17,7],[18,1,18,7],[19,1,19,7],[21,1,21,7],[2,0,2,7],[4,1,6,7],[8,2,13,6],[16,1,16,7]]}
[]
[]
["       SD LOTRIČ ŽELEZNIKI"]
[]
[]
[]
[]
[]
[]
[]
[]
[]
[]
[]
[]
[]
[null,"KVALIFIKACIJE ZA "]
[null,"IB. DRŽAVNO LIGO "]
[null,"PUŠKA"]
[]
[]
[null,"ŽELEZNIKI, 21.5.2011"]

{"sheet":"List1","index":1,"n_rows":85,"n_cols":5,"rows_kept":85,"cut":false,"hidden":false,"merged":[]}
["ŽELEZNIKI, 21.5.2011"]
[]
[]
["POROČILO"]
["Tekmovanje je poteklo po pravilih ISSF in SZS poteku državnih lig"]
["na 40. mestnem strelišču v Ljubljani."]
["Uradnih pritožb ni bilo."]
[]
[null,null,null,null,"Branko Košir, vodja tekmovanja"]
["ORGANIZACIJA"]
["Vodja tekmovanja:",null,"Branko Košir"]
["Delegirani sodnik:",null,"Rant Jožica"]
[]
["Sodniki za oceno tarč:",null,"Rant Jožica",null,"Frelih Jože"]
[null,null,"Irena Prezelj",null,"Lotrič Marjan"]
[]
["Sodniki na liniji:",null,"Markelj Franci",null,"Medved Ksenja"]
[null,null,"Šuštar Jani",null,"Prelec Tomaž"]
["Objava rezultatov:",null,"Prelec Romana"]
[]
[]
[]
[]
[]
[]
[]
[]
[]
[]
[]
[]
[]
[]
[]
[]
[]
[]
[]
[]
[]
[]
[]
[]
[]
["SPONZORJI:"]
[]
[null,null,null,null,"NIKO d.d., Otoki, Železniki"]
[]
[]
[null,null,null,null,"MEBOR D.O.O."]
[]
[]
[null,null,null,null,"AVTOPREVOZNIŠTVO FLANDER"]
[]
[]
[null,null,null,null,"TECHNO HI-FI ŠKOFJA LOKA"]
[]
[]
[null,null,null,null,"ORPO JERNEJ POTOČNIK"]
[]
[]
[]
[]
[]
[]
[]
[]
[]
[]
[]
["- Vesles - gozdarske storitve, Benedičič Miroslav, Racovnik 8, Železniki, 04 514 76 27"]
["- AM Habjan, Habjan Gregor, dr.med., Racovnik 29, Železniki"]
["- Šmid Ludvik s.p., ključavničarstvo, Dašnjica 37,Železniki"]
["- Predelava plastičnih mas, Lotrič Marko s.p., Log 48, Železniki, "]
["- Techno HI-FI, Videoteka, Jure Berglez s.p., Puštal 139, Škofja Loka"]
["- Drogerija Ana Mari, Češnjica"]
["- Marin Igor s.p."]
["- Decop d.o.o., Bogataj Andrej, Log 1, Železniki, 04 510 16 20"]
["- Avtoprevozništvo Košir Bogo"]
["- Nika šiv d.o.o., Dašnjica 73, 4228 Železniki, 04 514 70 64"]
["- Cvetje in darila Klavdija, Zalaznik Klavdija s.p., Studeno 22C, Železniki, 04 514 73 57"]
["- Tops d.o.o., Brane Mohorič, Log 44, Železniki, 04514 67 61"]
["- Vision studio d.o.o, Vodopivec Stojan, Češnjica 35, Železniki, 04 514 77 77"]
["- Društvo upokojencev Železniki"]
["- Avtoprevozništvo Thaler Drago, Studeno 22, Železniki, 04 514 66 29"]

{"sheet":"Posamezno","index":2,"n_rows":42,"n_cols":12,"rows_kept":42,"cut":false,"hidden":false,"merged":[[0,0,0,10],[2,0,2,10]]}
["Kvalifikacije za I.B LIGO PUŠKA"]
[]
["POSAMEZNO"]
["UVR.","PRIIMEK IN IME","EKIPA","St. m.","1.","2.","3.","4.","5.","6.","SKUP."]
[1,"ČERNI Mitja","SD GANČANI ",22,99,97,98,97,null,null,{"$f":"SUM(E5:J5)","v":391},"OK"]
[2,"ROŠER Rok","SD DOLIČ",27,96,99,97,98,null,null,390,"OK"]
[3,"PUFIČ Klavdija ","SD KIDRIČEVO",6,99,96,98,97,null,null,390,"OK"]
[4,"POTOČNIK Grega","SD RADOVLJICA",29,98,96,97,97,null,null,388,"OK"]
[5,"VERBANČIČ Denis","SD GANČANI ",13,95,98,96,98,null,null,387,"OK"]
[6,"BAKIČ Siniša","SD ELEKTRO MARIBOR",25,98,95,99,95,null,null,387,"OK"]
[7,"MOHORKO Uroš","SD KIDRIČEVO",8,96,97,96,96,null,null,385,"OK"]
[8,"ŠKERL Marko ","SD ŠKOFJA LOKA",23,95,96,95,97,null,null,383,"OK"]
[9,"FABJAN Boštjan","SD TELEKOM",12,94,94,96,96,null,null,380,"OK"]
[10,"VALENČAK Mitja","SD ELEKTRO MARIBOR",5,93,93,95,97,null,null,378,"OK"]
[11,"HERLAH Roman ","SD DOLIČ",3,90,97,95,95,null,null,377,"OK"]
[12,"MAURIČ Blaž","SD ELEKTRO MARIBOR",7,93,97,97,90,null,null,377,"OK"]
[13,"LISEC Sebastian ","SD RUDNIK HRASTNIK",4,92,95,96,93,null,null,376,"OK"]
[14,"KOZINC Jan","SD RADOVLJICA",18,92,93,91,97,null,null,373,"OK"]
[15,"LISEC Jasmina","SD RUDNIK HRASTNIK",17,92,94,91,96,null,null,373,"OK"]
[16,"TRIPAR Teo ","SD IZOLA",21,91,90,97,95,null,null,373,"OK"]
[17,"POŽAR Karim ","SD IZOLA",16,96,92,95,90,null,null,373,"OK"]
[18,"PAVČNIK Eva","SD RUDNIK HRASTNIK",19,88,93,93,98,null,null,372,"OK"]
[19,"REJA Katja ","SD IZOLA",14,92,92,92,96,null,null,372,"OK"]
[20,"STROPNIK Dejan ","SD DOLIČ",1,92,92,92,94,null,null,370,"OK"]
[21,"TOMAŽIN Anže","SD RADOVLJICA",20,94,94,92,89,null,null,369,"OK"]
[22,"PERNAT Aleš","SD KIDRIČEVO",24,87,95,90,95,null,null,367,"OK"]
[23,"ROJEC Srečo","SD TELEKOM",10,88,90,95,91,null,null,364,"OK"]
[24,"ČERNI Jernej","SD GANČANI ",15,88,92,93,88,null,null,361,"OK"]
[25,"FOJKAR Tina","SD ŠKOFJA LOKA",11,93,89,86,92,null,null,360,"OK"]
[26,"REMIČ Jože","SD ŠKOFJA LOKA",9,86,94,91,89,null,null,360,"OK"]
[27,"REMETIČ Predrag","SD TELEKOM",28,82,92,87,91,null,null,352]
[28,null,null,null,null,null,null,null,null,null,0]
[29]
[30]
[31]
[32]
[33]
[34]
[35]
[36]
[37]
[38]

{"sheet":"Ekipno","index":3,"n_rows":15,"n_cols":9,"rows_kept":15,"cut":false,"hidden":false,"merged":[[5,3,5,8],[0,0,0,8],[1,0,1,7],[3,0,3,8]]}
["Kvalifikacije za I.B LIGO PUŠKA"]
["Železniki, 21.5.2011"]
[]
["EKIPNO"]
[]
["UVR.","EKIPA","SKUP.","TEKMOVALCI"]
[1,"SD KIDRIČEVO (288)",{"$f":"+E7+G7+I7","v":1142},"PERNAT Aleš",367,"PUFIČ Klavdija ",390,"MOHORKO Uroš",385]
[2,"SD ELEKTRO MARIBOR (282)",1142,"BAKIČ Siniša",387,"VALENČAK Mitja",378,"MAURIČ Blaž",377]
[3,"SD GANČANI ",1139,"VERBANČIČ Denis",387,"ČERNI Jernej",361,"ČERNI Mitja",391]
[4,"SD DOLIČ",1137,"HERLAH Roman ",377,"STROPNIK Dejan ",370,"ROŠER Rok",390]
[5,"SD RADOVLJICA",1130,"KOZINC Jan",373,"TOMAŽIN Anže",369,"POTOČNIK Grega",388]
[6,"SD RUDNIK HRASTNIK",1121,"LISEC Sebastian ",376,"LISEC Jasmina",373,"PAVČNIK Eva",372]
[7,"SD IZOLA",1118,"POŽAR Karim ",373,"TRIPAR Teo ",373,"REJA Katja ",372]
[8,"SD ŠKOFJA LOKA",1103,"REMIČ Jože",360,"FOJKAR Tina",360,"ŠKERL Marko ",383]
[9,"SD TELEKOM",1096,"REMETIČ Predrag",352,"ROJEC Srečo",364,"FABJAN Boštjan",380]